[Event "Titled Tuesday Blitz February 14 Early 2023"]
[White "Real_taiatai"]
[Black "Bilan, Danila"]
[BlackFideId "24161918"]
[WhiteElo "2349"]
[BlackElo "2303"]
[Result "0-1"]
[Round "04"]
[TimeControl "180+2"]
[Date "2023.02.15"]
[WhiteClock "0:00:56"]
[BlackClock "0:01:51"]

1. d4 {[%clk 0:03:00]}  d5 {[%clk 0:02:55]} 2. c4 {[%clk 0:03:01]}  c6 {[%clk 0:02:55]} 3. Nf3 {[%clk 0:02:58]}  Nf6 {[%clk 0:02:55]} 4. e3 {[%clk 0:02:48]}  e6 {[%clk 0:02:50]} 5. Nc3 {[%clk 0:02:47]}  Nbd7 {[%clk 0:02:49]} 6. b3 {[%clk 0:02:45]}  Bb4 {[%clk 0:02:41]} 7. Bd2 {[%clk 0:02:43]}  Qe7 {[%clk 0:02:36]} 8. Bd3 {[%clk 0:02:43]}  e5 {[%clk 0:02:33]} 9. dxe5 {[%clk 0:02:42]}  Nxe5 {[%clk 0:02:33]} 10. Nxe5 {[%clk 0:02:41]}  Qxe5 {[%clk 0:02:34]} 11. Qc2 {[%clk 0:02:41]}  dxc4 {[%clk 0:02:26]} 12. Bxc4 {[%clk 0:02:35]}  Bf5 {[%clk 0:02:24]} 13. Qc1 {[%clk 0:02:07]}  Rd8 {[%clk 0:02:13]} 14. Ne4 {[%clk 0:01:42]}  Rxd2 {[%clk 0:01:51]} 15. Nxd2 {[%clk 0:01:43]}  Ne4 {[%clk 0:01:51]} 16. Be6 {[%clk 0:00:56]} 0-1


[Site "https://www.chess.com"]

[Event "Titled Tuesday Blitz February 14 Early 2023"]
[White "Nikologorsky, Matfei"]
[Black "Malka, Samuel"]
[WhiteFideId "24102474"]
[BlackFideId "20643675"]
[WhiteElo "2182"]
[BlackElo "2165"]
[Result "1/2-1/2"]
[Round "04"]
[TimeControl "180+2"]
[Date "2023.02.15"]
[WhiteClock "0:00:13"]
[BlackClock "0:00:09"]

1. e4 {[%clk 0:02:57]}  e5 {[%clk 0:02:59]} 2. Nf3 {[%clk 0:02:56]}  Nc6 {[%clk 0:03:00]} 3. Bb5 {[%clk 0:02:56]}  a6 {[%clk 0:02:59]} 4. Ba4 {[%clk 0:02:55]}  Nf6 {[%clk 0:02:58]} 5. O-O {[%clk 0:02:53]}  Be7 {[%clk 0:02:57]} 6. d3 {[%clk 0:02:49]}  d6 {[%clk 0:02:57]} 7. c3 {[%clk 0:02:43]}  O-O {[%clk 0:02:53]} 8. Re1 {[%clk 0:02:43]}  Nd7 {[%clk 0:02:51]} 9. Nbd2 {[%clk 0:02:36]}  Nb6 {[%clk 0:02:48]} 10. Bc2 {[%clk 0:02:32]}  f5 {[%clk 0:02:33]} 11. Nf1 {[%clk 0:02:15]}  f4 {[%clk 0:02:26]} 12. a4 {[%clk 0:02:11]}  a5 {[%clk 0:02:10]} 13. Bb3+ {[%clk 0:01:58]}  Kh8 {[%clk 0:02:09]} 14. d4 {[%clk 0:01:58]}  Qe8 {[%clk 0:02:04]} 15. Qd3 {[%clk 0:01:48]}  Bg4 {[%clk 0:01:57]} 16. h3 {[%clk 0:01:42]}  Bh5 {[%clk 0:01:54]} 17. N1h2 {[%clk 0:01:42]}  Rd8 {[%clk 0:01:37]} 18. Qb5 {[%clk 0:01:25]}  Bf6 {[%clk 0:01:33]} 19. d5 {[%clk 0:01:24]}  Ne7 {[%clk 0:01:28]} 20. Qxa5 {[%clk 0:01:23]}  g5 {[%clk 0:01:28]} 21. Qb5 {[%clk 0:01:19]}  Qg6 {[%clk 0:01:20]} 22. Bd1 {[%clk 0:01:12]}  Rg8 {[%clk 0:01:13]} 23. Nd2 {[%clk 0:01:07]}  Bxd1 {[%clk 0:01:12]} 24. Rxd1 {[%clk 0:01:07]}  g4 {[%clk 0:00:53]} 25. hxg4 {[%clk 0:01:02]}  h5 {[%clk 0:00:53]} 26. f3 {[%clk 0:00:58]}  Bh4 {[%clk 0:00:53]} 27. Ndf1 {[%clk 0:00:50]}  hxg4 {[%clk 0:00:33]} 28. fxg4 {[%clk 0:00:47]}  Qxe4 {[%clk 0:00:31]} 29. Qd3 {[%clk 0:00:31]}  Qxd3 {[%clk 0:00:30]} 30. Rxd3 {[%clk 0:00:32]}  Nbxd5 {[%clk 0:00:29]} 31. a5 {[%clk 0:00:30]}  Nf6 {[%clk 0:00:20]} 32. Rh3 {[%clk 0:00:30]}  Ng6 {[%clk 0:00:16]} 33. Nf3 {[%clk 0:00:30]}  Kg7 {[%clk 0:00:13]} 34. Nxh4 {[%clk 0:00:30]}  Nxg4 {[%clk 0:00:11]} 35. Nxg6 {[%clk 0:00:28]}  Kxg6 {[%clk 0:00:12]} 36. b4 {[%clk 0:00:28]}  Kf5 {[%clk 0:00:12]} 37. b5 {[%clk 0:00:27]}  e4 {[%clk 0:00:11]} 38. a6 {[%clk 0:00:23]}  bxa6 {[%clk 0:00:12]} 39. bxa6 {[%clk 0:00:24]}  Ra8 {[%clk 0:00:12]} 40. a7 {[%clk 0:00:22]}  e3 {[%clk 0:00:12]} 41. Nxe3+ {[%clk 0:00:17]}  Nxe3 {[%clk 0:00:11]} 42. Bxe3 {[%clk 0:00:17]}  fxe3 {[%clk 0:00:11]} 43. Rxe3 {[%clk 0:00:18]}  c5 {[%clk 0:00:09]} 44. Re7 {[%clk 0:00:17]}  Kf6 {[%clk 0:00:08]} 45. Rb7 {[%clk 0:00:17]}  Rgd8 {[%clk 0:00:06]} 46. Re1 {[%clk 0:00:15]}  d5 {[%clk 0:00:07]} 47. Kf2 {[%clk 0:00:15]}  d4 {[%clk 0:00:07]} 48. cxd4 {[%clk 0:00:15]}  Rxd4 {[%clk 0:00:08]} 49. Ree7 {[%clk 0:00:14]}  Ra4 {[%clk 0:00:07]} 50. Ke3 {[%clk 0:00:14]}  Rg4 {[%clk 0:00:05]} 51. Kf3 {[%clk 0:00:14]}  Ra4 {[%clk 0:00:05]} 52. g4 {[%clk 0:00:14]}  c4 {[%clk 0:00:05]} 53. Rec7 {[%clk 0:00:14]}  Kg5 {[%clk 0:00:05]} 54. Rc5+ {[%clk 0:00:12]}  Kg6 {[%clk 0:00:05]} 55. Kf4 {[%clk 0:00:11]}  c3+ {[%clk 0:00:05]} 56. Ke5 {[%clk 0:00:11]}  R4xa7 {[%clk 0:00:04]} 57. Rxa7 {[%clk 0:00:09]}  Rxa7 {[%clk 0:00:04]} 58. Rxc3 {[%clk 0:00:09]}  Kg5 {[%clk 0:00:04]} 59. Rc5 {[%clk 0:00:08]}  Kxg4 {[%clk 0:00:04]} 60. Kd6 {[%clk 0:00:09]}  Kf3 {[%clk 0:00:04]} 61. Kc6 {[%clk 0:00:09]}  Rf7 {[%clk 0:00:05]} 62. Kb6 {[%clk 0:00:10]}  Rf4 {[%clk 0:00:06]} 63. Rc6 {[%clk 0:00:10]}  Re4 {[%clk 0:00:06]} 64. Kc7 {[%clk 0:00:11]}  Kf4 {[%clk 0:00:07]} 65. Rd6 {[%clk 0:00:12]}  Re5 {[%clk 0:00:07]} 66. Rc6 {[%clk 0:00:12]}  Ke4 {[%clk 0:00:08]} 67. Rd6 {[%clk 0:00:12]}  Kf5 {[%clk 0:00:08]} 68. Kc6 {[%clk 0:00:12]}  Re6 {[%clk 0:00:09]} 69. Rxe6 {[%clk 0:00:13]}  Kxe6 {[%clk 0:00:09]} 1/2-1/2


[Site "https://www.chess.com"]

[Event "Titled Tuesday Blitz February 14 Early 2023"]
[White "Yurasova, Daria"]
[Black "Weisz, Bryan"]
[WhiteFideId "34146919"]
[BlackFideId "30934133"]
[WhiteElo "2095"]
[BlackElo "1973"]
[Result "1-0"]
[Round "04"]
[TimeControl "180+2"]
[Date "2023.02.15"]
[WhiteClock "0:00:50"]
[BlackClock "0:00:11"]

1. d4 {[%clk 0:02:59]}  e5 {[%clk 0:03:00]} 2. dxe5 {[%clk 0:02:59]}  Nc6 {[%clk 0:02:58]} 3. Nf3 {[%clk 0:02:59]}  Nge7 {[%clk 0:02:58]} 4. g3 {[%clk 0:02:58]}  Ng6 {[%clk 0:02:55]} 5. Bg2 {[%clk 0:02:58]}  Ngxe5 {[%clk 0:02:54]} 6. O-O {[%clk 0:02:59]}  Bc5 {[%clk 0:02:50]} 7. a3 {[%clk 0:02:56]}  a5 {[%clk 0:02:45]} 8. b3 {[%clk 0:02:55]}  Qe7 {[%clk 0:02:37]} 9. Bb2 {[%clk 0:02:54]}  O-O {[%clk 0:02:32]} 10. Nc3 {[%clk 0:02:51]}  Nxf3+ {[%clk 0:02:23]} 11. Bxf3 {[%clk 0:02:51]}  Bd4 {[%clk 0:02:12]} 12. Nd5 {[%clk 0:02:49]}  Qe5 {[%clk 0:02:05]} 13. c3 {[%clk 0:02:38]}  Ba7 {[%clk 0:01:58]} 14. e3 {[%clk 0:02:25]}  Ne7 {[%clk 0:01:48]} 15. Nxe7+ {[%clk 0:01:59]}  Qxe7 {[%clk 0:01:44]} 16. c4 {[%clk 0:01:57]}  d6 {[%clk 0:01:11]} 17. Qc2 {[%clk 0:01:49]}  Bh3 {[%clk 0:00:56]} 18. Rfd1 {[%clk 0:01:45]}  Rab8 {[%clk 0:00:46]} 19. Qc3 {[%clk 0:01:44]}  f6 {[%clk 0:00:41]} 20. Qxa5 {[%clk 0:01:31]}  Bb6 {[%clk 0:00:38]} 21. Qh5 {[%clk 0:01:24]}  Be6 {[%clk 0:00:31]} 22. Bd5 {[%clk 0:01:20]}  Bxd5 {[%clk 0:00:26]} 23. Qxd5+ {[%clk 0:01:21]}  Kh8 {[%clk 0:00:26]} 24. b4 {[%clk 0:01:17]}  Rfe8 {[%clk 0:00:26]} 25. Rac1 {[%clk 0:01:11]}  Rbd8 {[%clk 0:00:19]} 26. Bd4 {[%clk 0:01:09]}  Bxd4 {[%clk 0:00:19]} 27. Qxd4 {[%clk 0:01:09]}  Ra8 {[%clk 0:00:18]} 28. Qd3 {[%clk 0:01:06]}  Qd7 {[%clk 0:00:18]} 29. c5 {[%clk 0:01:05]}  Qh3 {[%clk 0:00:17]} 30. cxd6 {[%clk 0:01:04]}  cxd6 {[%clk 0:00:17]} 31. Rc7 {[%clk 0:00:57]}  Re5 {[%clk 0:00:12]} 32. Qxd6 {[%clk 0:00:56]}  Rh5 {[%clk 0:00:11]} 33. Qd8+ {[%clk 0:00:50]} 1-0


[Site "https://www.chess.com"]

[Event "Titled Tuesday Blitz February 14 Early 2023"]
[White "Jiganchine, Roman"]
[Black "Jimenez Almeida, Luis David"]
[WhiteFideId "2603667"]
[BlackFideId "22242244"]
[WhiteElo "2205"]
[BlackElo "2242"]
[Result "0-1"]
[Round "04"]
[TimeControl "180+2"]
[Date "2023.02.15"]
[WhiteClock "0:00:06"]
[BlackClock "0:00:08"]

1. e4 {[%clk 0:02:59]}  c6 {[%clk 0:02:43]} 2. d4 {[%clk 0:02:58]}  Na6 {[%clk 0:02:43]} 3. c4 {[%clk 0:02:53]}  e5 {[%clk 0:02:41]} 4. Ne2 {[%clk 0:02:52]}  Nf6 {[%clk 0:02:39]} 5. Nbc3 {[%clk 0:02:52]}  exd4 {[%clk 0:02:34]} 6. Nxd4 {[%clk 0:02:51]}  Bb4 {[%clk 0:02:32]} 7. Bd3 {[%clk 0:02:46]}  O-O {[%clk 0:02:19]} 8. O-O {[%clk 0:02:46]}  d6 {[%clk 0:02:12]} 9. h3 {[%clk 0:02:42]}  h6 {[%clk 0:02:10]} 10. Bc2 {[%clk 0:02:26]}  Re8 {[%clk 0:02:07]} 11. Qf3 {[%clk 0:02:14]}  Nc5 {[%clk 0:02:05]} 12. Re1 {[%clk 0:02:02]}  d5 {[%clk 0:01:48]} 13. cxd5 {[%clk 0:01:52]}  cxd5 {[%clk 0:01:40]} 14. e5 {[%clk 0:01:48]}  Nfe4 {[%clk 0:01:37]} 15. Bf4 {[%clk 0:01:19]}  Qa5 {[%clk 0:01:23]} 16. Nxd5 {[%clk 0:01:09]}  Bxe1 {[%clk 0:01:11]} 17. Bxe4 {[%clk 0:01:05]}  Nxe4 {[%clk 0:00:59]} 18. Qxe4 {[%clk 0:01:05]}  Be6 {[%clk 0:00:58]} 19. Nf6+ {[%clk 0:00:42]}  gxf6 {[%clk 0:00:54]} 20. Rxe1 {[%clk 0:00:26]}  f5 {[%clk 0:00:48]} 21. Qe3 {[%clk 0:00:24]}  Kh7 {[%clk 0:00:43]} 22. Rd1 {[%clk 0:00:23]}  Rad8 {[%clk 0:00:32]} 23. Bxh6 {[%clk 0:00:22]}  Qa4 {[%clk 0:00:27]} 24. Bg5 {[%clk 0:00:19]}  Qxd1+ {[%clk 0:00:26]} 25. Kh2 {[%clk 0:00:18]}  Qxd4 {[%clk 0:00:23]} 26. Qg3 {[%clk 0:00:13]}  Rg8 {[%clk 0:00:17]} 27. f4 {[%clk 0:00:09]}  Rxg5 {[%clk 0:00:10]} 28. Qh4+ {[%clk 0:00:09]}  Kg7 {[%clk 0:00:08]} 29. Qxg5+ {[%clk 0:00:08]}  Kf8 {[%clk 0:00:08]} 30. Qh6+ {[%clk 0:00:08]}  Ke8 {[%clk 0:00:09]} 31. Qh8+ {[%clk 0:00:07]}  Kd7 {[%clk 0:00:09]} 32. Qh4 {[%clk 0:00:06]}  Rc8 {[%clk 0:00:09]} 33. Qg3 {[%clk 0:00:06]}  Rc4 {[%clk 0:00:07]} 34. Qg5 {[%clk 0:00:06]}  Qxf4+ {[%clk 0:00:08]} 0-1


[Site "https://www.chess.com"]

[Event "Titled Tuesday Blitz February 14 Early 2023"]
[White "Mazibuko, Khanya"]
[Black "Aarav Dengla"]
[WhiteFideId "14321041"]
[BlackFideId "45059756"]
[WhiteElo "1913"]
[BlackElo "2343"]
[Result "1-0"]
[Round "04"]
[TimeControl "180+2"]
[Date "2023.02.15"]
[WhiteClock "0:01:07"]
[BlackClock "0:00:05"]

1. e4 {[%clk 0:03:00]}  c5 {[%clk 0:02:59]} 2. Nf3 {[%clk 0:03:00]}  d6 {[%clk 0:02:59]} 3. d4 {[%clk 0:02:59]}  cxd4 {[%clk 0:03:00]} 4. Nxd4 {[%clk 0:03:00]}  Nf6 {[%clk 0:03:01]} 5. Nc3 {[%clk 0:03:00]}  a6 {[%clk 0:03:01]} 6. Bc4 {[%clk 0:02:59]}  e6 {[%clk 0:03:00]} 7. Bb3 {[%clk 0:02:59]}  b5 {[%clk 0:02:50]} 8. f3 {[%clk 0:02:45]}  Be7 {[%clk 0:02:44]} 9. Be3 {[%clk 0:02:43]}  Qc7 {[%clk 0:02:15]} 10. Qd2 {[%clk 0:02:39]}  Nc6 {[%clk 0:02:09]} 11. Nxc6 {[%clk 0:02:39]}  Qxc6 {[%clk 0:02:10]} 12. g4 {[%clk 0:02:34]}  h6 {[%clk 0:02:07]} 13. O-O-O {[%clk 0:02:32]}  Bb7 {[%clk 0:01:45]} 14. h4 {[%clk 0:02:32]}  Nd7 {[%clk 0:01:42]} 15. Ne2 {[%clk 0:02:25]}  Nc5 {[%clk 0:01:30]} 16. Kb1 {[%clk 0:02:21]}  Nxb3 {[%clk 0:01:28]} 17. axb3 {[%clk 0:02:22]}  Qc7 {[%clk 0:01:07]} 18. Nd4 {[%clk 0:02:20]}  d5 {[%clk 0:00:58]} 19. e5 {[%clk 0:02:14]}  a5 {[%clk 0:00:36]} 20. f4 {[%clk 0:02:07]}  a4 {[%clk 0:00:24]} 21. b4 {[%clk 0:02:01]}  Qc4 {[%clk 0:00:17]} 22. c3 {[%clk 0:01:56]}  O-O {[%clk 0:00:14]} 23. f5 {[%clk 0:01:48]}  exf5 {[%clk 0:00:12]} 24. gxf5 {[%clk 0:01:44]}  f6 {[%clk 0:00:12]} 25. e6 {[%clk 0:01:35]}  Kh7 {[%clk 0:00:06]} 26. Rdg1 {[%clk 0:01:35]}  Rg8 {[%clk 0:00:05]} 27. Rg6 {[%clk 0:01:17]}  a3 {[%clk 0:00:05]} 28. b3 {[%clk 0:01:15]}  Qc7 {[%clk 0:00:05]} 29. Bxh6 {[%clk 0:01:14]}  Qe5 {[%clk 0:00:05]} 30. Bxg7 {[%clk 0:01:09]}  Qe4+ {[%clk 0:00:05]} 31. Ka2 {[%clk 0:01:07]} 1-0


[Site "https://www.chess.com"]

[Event "Titled Tuesday Blitz February 14 Early 2023"]
[White "Fiorito, Francisco"]
[Black "Sovetbekova, Nurai"]
[WhiteFideId "180165"]
[BlackFideId "13801910"]
[WhiteElo "2305"]
[BlackElo "1764"]
[Result "1-0"]
[Round "04"]
[TimeControl "180+2"]
[Date "2023.02.15"]
[WhiteClock "0:00:03"]
[BlackClock "0:00:01"]

1. d4 {[%clk 0:03:00]}  Nf6 {[%clk 0:02:59]} 2. Nc3 {[%clk 0:03:01]}  d5 {[%clk 0:02:58]} 3. Bf4 {[%clk 0:03:00]}  g6 {[%clk 0:02:58]} 4. e3 {[%clk 0:02:58]}  Bg7 {[%clk 0:02:58]} 5. Be2 {[%clk 0:02:59]}  O-O {[%clk 0:02:58]} 6. h4 {[%clk 0:03:00]}  c5 {[%clk 0:02:56]} 7. h5 {[%clk 0:02:56]}  Nc6 {[%clk 0:02:52]} 8. hxg6 {[%clk 0:02:52]}  hxg6 {[%clk 0:02:49]} 9. Nf3 {[%clk 0:02:52]}  Bg4 {[%clk 0:02:26]} 10. dxc5 {[%clk 0:02:41]}  Qa5 {[%clk 0:02:21]} 11. Qd2 {[%clk 0:02:32]}  Qxc5 {[%clk 0:02:17]} 12. Bh6 {[%clk 0:02:03]}  Ne4 {[%clk 0:01:49]} 13. Nxe4 {[%clk 0:01:59]}  dxe4 {[%clk 0:01:49]} 14. Nd4 {[%clk 0:01:42]}  Bxe2 {[%clk 0:01:42]} 15. Nxc6 {[%clk 0:01:17]}  Qxc6 {[%clk 0:01:22]} 16. Bxg7 {[%clk 0:01:12]}  Kxg7 {[%clk 0:01:22]} 17. Qxe2 {[%clk 0:01:12]}  Rac8 {[%clk 0:01:14]} 18. O-O-O {[%clk 0:01:11]}  b5 {[%clk 0:01:04]} 19. Kb1 {[%clk 0:01:10]}  a5 {[%clk 0:01:00]} 20. Rd2 {[%clk 0:00:50]}  b4 {[%clk 0:00:43]} 21. Qg4 {[%clk 0:00:44]}  a4 {[%clk 0:00:27]} 22. Qg5 {[%clk 0:00:42]}  Rh8 {[%clk 0:00:21]} 23. Rxh8 {[%clk 0:00:15]}  Rxh8 {[%clk 0:00:22]} 24. Rd1 {[%clk 0:00:15]}  Rc8 {[%clk 0:00:16]} 25. Qe5+ {[%clk 0:00:15]}  Kg8 {[%clk 0:00:10]} 26. Rc1 {[%clk 0:00:15]}  b3 {[%clk 0:00:08]} 27. Qxe7 {[%clk 0:00:01]}  bxc2+ {[%clk 0:00:04]} 28. Ka1 {[%clk 0:00:02]}  Qd5 {[%clk 0:00:03]} 29. Qa3 {[%clk 0:00:01]}  Qd2 {[%clk 0:00:01]} 30. b3 {[%clk 0:00:02]}  Qc3+ {[%clk 0:00:01]} 31. Qb2 {[%clk 0:00:02]}  Qd2 {[%clk 0:00:02]} 32. bxa4 {[%clk 0:00:02]}  Rc6 {[%clk 0:00:01]} 33. a5 {[%clk 0:00:02]}  Qxa5 {[%clk 0:00:01]} 34. Rh1 {[%clk 0:00:03]} 1-0


[Site "https://www.chess.com"]

[Event "Titled Tuesday Blitz February 14 Early 2023"]
[White "Urbina Quiroz, Edwin"]
[Black "Dragomirescu, Angela"]
[WhiteFideId "6500650"]
[BlackFideId "1209914"]
[WhiteElo "2129"]
[BlackElo "2130"]
[Result "0-1"]
[Round "04"]
[TimeControl "180+2"]
[Date "2023.02.15"]
[WhiteClock "0:00:01"]
[BlackClock "0:01:04"]

1. e4 {[%clk 0:02:47]}  e5 {[%clk 0:03:00]} 2. Nf3 {[%clk 0:02:30]}  Nc6 {[%clk 0:03:00]} 3. c3 {[%clk 0:02:30]}  Nf6 {[%clk 0:03:00]} 4. d4 {[%clk 0:02:30]}  d5 {[%clk 0:02:43]} 5. Bb5 {[%clk 0:02:23]}  exd4 {[%clk 0:02:36]} 6. e5 {[%clk 0:02:19]}  Ne4 {[%clk 0:02:35]} 7. cxd4 {[%clk 0:02:17]}  Bb4+ {[%clk 0:02:35]} 8. Bd2 {[%clk 0:02:17]}  Bxd2+ {[%clk 0:02:34]} 9. Nbxd2 {[%clk 0:02:18]}  Kf8 {[%clk 0:02:35]} 10. h3 {[%clk 0:02:12]}  Ne7 {[%clk 0:02:24]} 11. Qe2 {[%clk 0:02:11]}  Bf5 {[%clk 0:02:22]} 12. Bd3 {[%clk 0:02:10]}  Nxd2 {[%clk 0:02:21]} 13. Nxd2 {[%clk 0:02:06]}  h5 {[%clk 0:02:08]} 14. O-O {[%clk 0:02:02]}  g6 {[%clk 0:02:05]} 15. Rac1 {[%clk 0:02:01]}  Kg7 {[%clk 0:02:02]} 16. Rc3 {[%clk 0:02:01]}  c6 {[%clk 0:02:02]} 17. Nf3 {[%clk 0:01:57]}  h4 {[%clk 0:01:58]} 18. Ng5 {[%clk 0:01:47]}  Rh5 {[%clk 0:01:40]} 19. f4 {[%clk 0:01:40]}  a5 {[%clk 0:01:37]} 20. e6 {[%clk 0:01:04]}  f6 {[%clk 0:01:35]} 21. Nf3 {[%clk 0:01:04]}  Qd6 {[%clk 0:01:30]} 22. Rcc1 {[%clk 0:00:19]}  Re8 {[%clk 0:01:29]} 23. Rce1 {[%clk 0:00:19]}  Qxf4 {[%clk 0:01:26]} 24. Bxf5 {[%clk 0:00:09]}  Nxf5 {[%clk 0:01:27]} 25. Qc2 {[%clk 0:00:05]}  Qd6 {[%clk 0:01:23]} 26. Qb3 {[%clk 0:00:05]}  b5 {[%clk 0:01:23]} 27. Qc3 {[%clk 0:00:05]}  b4 {[%clk 0:01:18]} 28. Qd3 {[%clk 0:00:05]}  Rxe6 {[%clk 0:01:18]} 29. Rxe6 {[%clk 0:00:06]}  Qxe6 {[%clk 0:01:19]} 30. Re1 {[%clk 0:00:05]}  Qd7 {[%clk 0:01:20]} 31. Qa6 {[%clk 0:00:04]}  Qc7 {[%clk 0:01:12]} 32. Rc1 {[%clk 0:00:02]}  Ne7 {[%clk 0:01:08]} 33. Re1 {[%clk 0:00:02]}  Rh8 {[%clk 0:01:07]} 34. Qd3 {[%clk 0:00:01]}  Ra8 {[%clk 0:01:07]} 35. Nxh4 {[%clk 0:00:01]}  f5 {[%clk 0:01:04]} 0-1


[Site "https://www.chess.com"]

[Event "Titled Tuesday Blitz February 14 Early 2023"]
[White "Baches Garcia, Guillermo"]
[Black "Smith, Garrett L"]
[WhiteFideId "2209764"]
[BlackFideId "2024829"]
[WhiteElo "2327"]
[BlackElo "2047"]
[Result "1-0"]
[Round "04"]
[TimeControl "180+2"]
[Date "2023.02.15"]
[WhiteClock "0:00:56"]
[BlackClock "0:00:46"]

1. e4 {[%clk 0:03:00]}  c5 {[%clk 0:03:00]} 2. Nf3 {[%clk 0:03:00]}  Nc6 {[%clk 0:03:00]} 3. d4 {[%clk 0:03:01]}  cxd4 {[%clk 0:03:01]} 4. Nxd4 {[%clk 0:03:01]}  e5 {[%clk 0:03:01]} 5. Nb5 {[%clk 0:03:01]}  d6 {[%clk 0:03:02]} 6. N1c3 {[%clk 0:03:00]}  a6 {[%clk 0:03:01]} 7. Na3 {[%clk 0:03:00]}  Be7 {[%clk 0:03:02]} 8. Be3 {[%clk 0:02:58]}  Be6 {[%clk 0:02:49]} 9. Nc4 {[%clk 0:02:54]}  b5 {[%clk 0:02:37]} 10. Nb6 {[%clk 0:02:45]}  Rb8 {[%clk 0:02:37]} 11. Ncd5 {[%clk 0:02:38]}  Nf6 {[%clk 0:02:28]} 12. Nxf6+ {[%clk 0:02:35]}  Bxf6 {[%clk 0:02:27]} 13. Nd5 {[%clk 0:02:35]}  Bxd5 {[%clk 0:01:44]} 14. Qxd5 {[%clk 0:02:33]}  Ne7 {[%clk 0:01:42]} 15. Qd2 {[%clk 0:02:23]}  d5 {[%clk 0:01:41]} 16. exd5 {[%clk 0:02:19]}  Qxd5 {[%clk 0:01:37]} 17. O-O-O {[%clk 0:02:06]}  Rd8 {[%clk 0:01:29]} 18. Qxd5 {[%clk 0:01:46]}  Rxd5 {[%clk 0:01:26]} 19. c4 {[%clk 0:01:37]}  Rxd1+ {[%clk 0:01:25]} 20. Kxd1 {[%clk 0:01:37]}  bxc4 {[%clk 0:01:16]} 21. Bxc4 {[%clk 0:01:35]}  O-O {[%clk 0:01:07]} 22. Bxa6 {[%clk 0:01:25]}  Nd5 {[%clk 0:01:07]} 23. Bd2 {[%clk 0:01:12]}  Rd8 {[%clk 0:00:57]} 24. Ke2 {[%clk 0:01:08]}  Be7 {[%clk 0:00:53]} 25. Rc1 {[%clk 0:00:59]}  h6 {[%clk 0:00:46]} 26. Rc8 {[%clk 0:00:56]} 1-0


[Site "https://www.chess.com"]

[Event "Titled Tuesday Blitz February 14 Early 2023"]
[White "Clawitter, Craig"]
[Black "Ponce Cano, Adrian"]
[WhiteFideId "2023105"]
[BlackFideId "22296913"]
[WhiteElo "2050"]
[BlackElo "2210"]
[Result "1-0"]
[Round "04"]
[TimeControl "180+2"]
[Date "2023.02.15"]
[WhiteClock "0:00:07"]
[BlackClock "0:01:56"]

1. e4 {[%clk 0:03:00]}  c5 {[%clk 0:03:00]} 2. Nf3 {[%clk 0:03:00]}  a6 {[%clk 0:03:00]} 3. c3 {[%clk 0:02:59]}  d5 {[%clk 0:02:59]} 4. exd5 {[%clk 0:02:58]}  Qxd5 {[%clk 0:03:00]} 5. d4 {[%clk 0:02:58]}  cxd4 {[%clk 0:03:01]} 6. cxd4 {[%clk 0:02:58]}  Nf6 {[%clk 0:03:02]} 7. Nc3 {[%clk 0:02:58]}  Qd6 {[%clk 0:03:02]} 8. g3 {[%clk 0:02:54]}  e6 {[%clk 0:03:01]} 9. Bg2 {[%clk 0:02:53]}  Be7 {[%clk 0:03:00]} 10. O-O {[%clk 0:02:53]}  O-O {[%clk 0:03:00]} 11. Bf4 {[%clk 0:02:52]}  Qb4 {[%clk 0:02:59]} 12. Qb3 {[%clk 0:02:35]}  Qxb3 {[%clk 0:02:58]} 13. axb3 {[%clk 0:02:36]}  Nc6 {[%clk 0:02:55]} 14. Nb5 {[%clk 0:02:36]}  Bd7 {[%clk 0:02:53]} 15. Na3 {[%clk 0:02:18]}  Nd5 {[%clk 0:02:52]} 16. Nc4 {[%clk 0:02:14]}  Nxf4 {[%clk 0:02:51]} 17. gxf4 {[%clk 0:02:15]}  Rad8 {[%clk 0:02:49]} 18. Rfd1 {[%clk 0:02:05]}  Bf6 {[%clk 0:02:44]} 19. Nfe5 {[%clk 0:02:04]}  Bxe5 {[%clk 0:02:42]} 20. dxe5 {[%clk 0:02:02]}  f6 {[%clk 0:02:38]} 21. Nd6 {[%clk 0:02:01]}  fxe5 {[%clk 0:02:38]} 22. Nxb7 {[%clk 0:02:00]}  Nd4 {[%clk 0:02:33]} 23. fxe5 {[%clk 0:01:23]}  Bb5 {[%clk 0:02:29]} 24. Nxd8 {[%clk 0:01:19]}  Rxd8 {[%clk 0:02:28]} 25. Bf1 {[%clk 0:01:10]}  Bc6 {[%clk 0:02:26]} 26. Bg2 {[%clk 0:00:59]}  Bb5 {[%clk 0:02:25]} 27. f3 {[%clk 0:00:35]}  g5 {[%clk 0:02:18]} 28. Kf2 {[%clk 0:00:33]}  Kg7 {[%clk 0:02:17]} 29. Rac1 {[%clk 0:00:16]}  Kg6 {[%clk 0:02:16]} 30. Rd2 {[%clk 0:00:11]}  Nxb3 {[%clk 0:02:15]} 31. Rxd8 {[%clk 0:00:11]}  Nxc1 {[%clk 0:02:15]} 32. Ke3 {[%clk 0:00:09]}  Nb3 {[%clk 0:02:12]} 33. Bh3 {[%clk 0:00:07]}  Nc5 {[%clk 0:02:08]} 34. Rd6 {[%clk 0:00:07]}  h5 {[%clk 0:02:05]} 35. b4 {[%clk 0:00:06]}  Nd7 {[%clk 0:01:57]} 36. Bxe6 {[%clk 0:00:06]}  Nxe5 {[%clk 0:01:57]} 37. Bc4+ {[%clk 0:00:06]}  Kg7 {[%clk 0:01:55]} 38. Bxb5 {[%clk 0:00:06]}  axb5 {[%clk 0:01:56]} 39. Rd5 {[%clk 0:00:07]}  Nc4+ {[%clk 0:01:55]} 40. Kd4 {[%clk 0:00:07]}  Na3 {[%clk 0:01:55]} 41. Rxg5+ {[%clk 0:00:07]}  Kh6 {[%clk 0:01:55]} 42. Rc5 {[%clk 0:00:06]}  Kg6 {[%clk 0:01:55]} 43. f4 {[%clk 0:00:06]}  h4 {[%clk 0:01:54]} 44. f5+ {[%clk 0:00:07]}  Kf6 {[%clk 0:01:54]} 45. h3 {[%clk 0:00:07]}  Kg5 {[%clk 0:01:53]} 46. Ke5 {[%clk 0:00:07]}  Nc4+ {[%clk 0:01:53]} 47. Rxc4 {[%clk 0:00:07]}  bxc4 {[%clk 0:01:54]} 48. Kd4 {[%clk 0:00:08]}  Kxf5 {[%clk 0:01:55]} 49. b5 {[%clk 0:00:07]}  c3 {[%clk 0:01:53]} 50. Kxc3 {[%clk 0:00:07]}  Kf4 {[%clk 0:01:54]} 51. b6 {[%clk 0:00:07]}  Kg3 {[%clk 0:01:54]} 52. b7 {[%clk 0:00:08]}  Kxh3 {[%clk 0:01:55]} 53. b8=Q {[%clk 0:00:08]}  Kg2 {[%clk 0:01:56]} 54. Qg8+ {[%clk 0:00:08]}  Kh1 {[%clk 0:01:56]} 55. Qh7 {[%clk 0:00:08]}  Kg2 {[%clk 0:01:55]} 56. Qxh4 {[%clk 0:00:08]}  Kg1 {[%clk 0:01:55]} 57. Qe4 {[%clk 0:00:07]}  Kf1 {[%clk 0:01:56]} 58. Qc2 {[%clk 0:00:07]} 1-0


[Site "https://www.chess.com"]

[Event "Titled Tuesday Blitz February 14 Early 2023"]
[White "Slade, Theodore"]
[Black "SicilianPanzer"]
[WhiteFideId "426547"]
[WhiteElo "1995"]
[BlackElo "2240"]
[Result "1-0"]
[Round "04"]
[TimeControl "180+2"]
[Date "2023.02.15"]
[WhiteClock "0:01:51"]
[BlackClock "0:00:43"]

1. d4 {[%clk 0:03:00]}  Nf6 {[%clk 0:02:59]} 2. c4 {[%clk 0:03:01]}  e6 {[%clk 0:02:58]} 3. g3 {[%clk 0:03:01]}  c5 {[%clk 0:02:56]} 4. d5 {[%clk 0:03:01]}  exd5 {[%clk 0:02:56]} 5. cxd5 {[%clk 0:03:02]}  b5 {[%clk 0:02:56]} 6. d6 {[%clk 0:02:55]}  Qb6 {[%clk 0:02:23]} 7. Bg2 {[%clk 0:02:54]}  Bb7 {[%clk 0:02:16]} 8. Bxb7 {[%clk 0:02:54]}  Qxb7 {[%clk 0:02:16]} 9. Nf3 {[%clk 0:02:55]}  Ne4 {[%clk 0:02:06]} 10. Bf4 {[%clk 0:02:49]}  Qc6 {[%clk 0:02:04]} 11. Nc3 {[%clk 0:02:41]}  Nxd6 {[%clk 0:01:57]} 12. O-O {[%clk 0:02:41]}  Ne4 {[%clk 0:01:33]} 13. Nd5 {[%clk 0:02:39]}  Na6 {[%clk 0:01:27]} 14. a4 {[%clk 0:02:31]}  b4 {[%clk 0:00:57]} 15. Qd3 {[%clk 0:02:31]}  Nd6 {[%clk 0:00:47]} 16. Qxa6 {[%clk 0:02:20]}  Qxd5 {[%clk 0:00:46]} 17. Rad1 {[%clk 0:01:54]}  Qc4 {[%clk 0:00:43]} 18. Rxd6 {[%clk 0:01:51]} 1-0


[Site "https://www.chess.com"]